Cogmind - Beta 13 @@@ ROGUE MODE // 2024.04.21 @ 00:05:40 Player: H3-RMN Result: Destroyed by P3-I8O(R) with Subdweller Machine Gun Performance ------------- Evolutions (0) 0 Regions Visited (3) 600 Robots Destroyed (47) 235 Value Destroyed (1159) 1159 Prototype IDs (4) 80 Alien Tech Used (0) 0 Bonus (2) 2 TOTAL SCORE: 2076 Bonus ------- Follower Combat Kills 25 Friendly Fire -23 Cogmind --------- Core Integrity 0/250 Matter 137/300 Energy 52/200 System Corruption 0% Temperature Cool (0) Movement Treading (320) Ox2 Location -10/Subcaves Parts ------- > --- POWER (1) -------- Subdweller Power Source > --- PROPULSION (2) --- Light Treads Subdweller Monowheel > --- UTILITY (2) ------ Large Storage Unit Hardened Light Armor Plating > --- WEAPON (2) ------- Riot Gun Subdweller Shrapnel Launcher > --- INVENTORY (15) --- Meta Core Makeshift Leg Wheel Wheel Wheel Medium Storage Unit Machine Analyzer Transport Network Coupler Phase Shifter Core Shielding Hardened Light Armor Plating Hacking Suite Datajack Mining Laser Peak State ------------ > --- POWER ------------ Light Ion Engine > --- PROPULSION ------- Light Treads Subdweller Monowheel > --- UTILITY ---------- Large Storage Unit Hardened Light Armor Plating > --- WEAPON ----------- Beamcaster Beamcaster > --- INVENTORY -------- Makeshift Leg Flexi-carbon Leg Wheel Wheel Wheel Medium Storage Unit Machine Analyzer Transport Network Coupler Phase Shifter Core Shielding Hardened Light Armor Plating Hacking Suite Grenade Launcher Datajack Mining Laser [Rating: 20] Favorites ----------- Power Light Ion Engine Engine Light Ion Engine Propulsion Light Treads Treads Light Treads Wheel Wheel Utility Hardened Light Armor Plating Device Seismic Detector Storage Large Storage Unit Protection Hardened Light Armor Plating Weapon Improved EM Shotgun Energy Gun Improved EM Shotgun Ballistic Gun Assault Rifle Ballistic Cannon Light Cannon Launcher Subdweller Shrapnel Launcher Special Weapon Mining Laser Build | -11 -10 -10 -10 ------- Run | Yrd Mat Min Sub Slots Evolved . | . . . . Power . | . . . . Propulsion . | . . . . Utility . | . . . . Weapon . | . . . . Parts Attached 52 | 7 26 8 11 Power 7 | 1 4 1 1 Engine 7 | 1 4 1 1 Core . | . . . . Reactor . | . . . . Propulsion 16 | 2 9 4 1 Treads 7 | 1 4 2 . Leg . | . . . . Wheel 9 | 1 5 2 1 Hover . | . . . . Flight . | . . . . Utility 9 | 2 5 1 1 Device 1 | 1 . . . Storage 3 | 1 2 . . Processor . | . . . . Hackware . | . . . . Protection 5 | . 3 1 1 Artifact . | . . . . Weapon 20 | 2 8 2 8 Energy Gun 12 | 1 6 . 5 Energy Cannon . | . . . . Ballistic Gun 3 | 1 2 . . Ballistic Cannon 1 | . . 1 . Launcher 2 | . . . 2 Special Weapon 2 | . . 1 1 Impact Weapon . | . . . . Slashing Weapon . | . . . . Piercing Weapon . | . . . . Special Melee Weapon . | . . . . Unidentified Prototypes 1 | . 1 . . Parts Lost 15 | . 3 7 5 Power 3 | . 1 1 1 Propulsion 4 | . 1 3 . Utility 2 | . . 1 1 Weapon 6 | . 1 2 3 Highest Loss Streak 7 | . 2 7 2 To Critical Strikes 1 | . . . 1 Average Slot Usage (%) 96 | . 97 97 93 Engine 12 | . 13 13 9 Treads 13 | . 13 13 14 Wheel 13 | . 13 13 14 Storage 14 | . 14 14 14 Protection 12 | . 12 14 14 Energy Gun 14 | . 20 1 17 Ballistic Gun 3 | . 6 1 . Ballistic Cannon 3 | . . 12 1 Launcher 1 | . . . 5 Special Weapon 3 | . . 11 1 Naked Turns . | . . . . Heaviest Build 93 | 13 93 33 41 Greatest Support 26 | 20 26 10 20 Greatest Overweight (x) 30 | 2 30 3 3 Average Overweight (x) 3 | . 3 2 1 Largest Inventory Capacity 25 | 8 25 15 15 Average Capacity 15 | 7 16 15 15 Most Carried 17 | 6 17 15 15 Average Carried 12 | 4 12 13 14 Final Capacity 15 | 8 15 15 15 Final Carried 15 | 6 15 15 14 Class Distribution -------------------- 96% | Mutant 3% | Scavenger-Mutant Dominant Class ---------------- Mutant | -10/Materials Mutant | -10/Mines Mutant | -10/Subcaves Resources | -11 -10 -10 -10 ----------- Run | Yrd Mat Min Sub Matter Collected 1088 | 318 465 139 166 Remotely . | . . . . Salvage Created 1581 | 171 1036 20 354 Parts 96 | 9 68 . 19 Haulers Intercepted 2 | . 2 . . Recyclers Shooed 2 | . 2 . . Parts Field Recycled . | . . . . Retrieved Matter . | . . . . Parts Self-Destructed 10 | . . . 10 Prevented . | . . . . Kills | -11 -10 -10 -10 ------- Run | Yrd Mat Min Sub Combat Hostiles Destroyed 31 | . 16 2 13 Guns 21 | . 14 1 6 Cannons 3 | . . 1 2 AOE 7 | . 2 . 5 Classes Destroyed 12 | 3 7 1 1 Worker 3 | 2 1 . . Builder 3 | . 3 . . Tunneler 2 | 2 . . . Hauler 2 | . 2 . . Recycler 2 | 1 1 . . Mechanic 1 | . 1 . . Operator 2 | . 2 . . Watcher 3 | . 3 . . Swarmer 6 | . 3 . 3 Grunt 13 | . 13 . . Subdweller 10 | . . . 10 Assembled 2 | . . 2 . Best Kill Streak 4 | 3 3 1 4 Combat Bots Only 4 | . 3 1 4 Max Kills in Single Turn 2 | 1 2 1 1 Gunslinging . | . . . . Exploded 1 | . 1 . 1 Melee . | . . . . Uniques/NPCs Destroyed . | . . . . Combat | -11 -10 -10 -10 -------- Run | Yrd Mat Min Sub Hostile Shots Fired 143 | . 56 28 59 Missed 36 | . 14 5 17 Damage Taken 2043 | 4 637 725 677 Core 253 | . 96 66 91 Absorbed by Shields . | . . . . Core Remaining (%) 100 | 100 . . . Volleys Fired 144 | 16 59 26 43 Largest 2 | 2 2 2 2 Hottest 150 | 60 85 135 150 Shots Fired 233 | 32 103 33 65 Gun 185 | 32 103 7 43 Cannon 24 | . . 18 6 Launcher 12 | . . . 12 Special 12 | . . 8 4 Kinetic 94 | 16 40 22 16 Thermal 50 | . . 8 42 Explosive 2 | . . . 2 Electromagnetic 87 | 16 63 3 5 Robot Hit Streak 17 | 5 17 5 14 Robot Miss Streak 4 | 4 4 3 2 Penetration Max . | . . . . Secondary Targets 1 | . 1 . . Max Gunslinging Chain 1 | . 1 . . Shots Hit Robots 138 | 17 67 17 37 Core Hits 76 | 5 41 9 21 Critical Kills . | . . . . Critical Parts Destroyed 1 | . 1 . . Critical Strikes 3 | . 2 . 1 Burn 1 | . . . 1 Destroy 1 | . 1 . . Corrupt 1 | . 1 . . Melee Attacks . | . . . . Impact . | . . . . Slashing . | . . . . Piercing . | . . . . Sneak Attacks . | . . . . Combat Hostiles . | . . . . Follow-up Attacks . | . . . . Damage Inflicted 3444 | 277 1599 260 1308 Guns 1963 | 235 1142 64 522 Cannons 232 | . . 196 36 Explosions 1249 | 42 457 . 750 Melee . | . . . . Ramming . | . . . . Kinetic 1264 | 117 200 230 717 Thermal 963 | 42 457 . 464 Explosive 69 | . . . 69 Electromagnetic 1148 | 118 942 30 58 Impact . | . . . . Slashing . | . . . . Piercing . | . . . . Highest Corruption . | . . . . Average Corruption . | . . . . Corruption Purged . | . . . . Corruption Blocked . | . . . . Overload Shots . | . . . . Overflow Damage 31 | 12 19 . . Projectiles . | . . . . Explosions 31 | 12 19 . . Melee . | . . . . Knockbacks 3 | . . 3 . Impact . | . . . . Kinetic 3 | . . 3 . Secondary . | . . . . Self-Inflicted Damage 215 | 4 197 . 14 Shots 8 | 1 6 . 1 Rammed . | . . . . Targets Rammed . | . . . . Kicked . | . . . . Crushed . | . . . . Highest Temperature 255 | 12 126 188 255 Average Temperature 47 | 12 35 61 66 Received Heat Transfer 415 | . 228 46 141 Effects 1 | . . . 1 Energy Bleed 1 | . . . 1 Siege Activations . | . . . . Robots Corrupted . | . . . . Combat Hostiles . | . . . . Parts Fried 2 | . 2 . . Impact Corruptions . | . . . . Robots Melted . | . . . . Combat Hostiles . | . . . . Parts Melted 2 | . 1 . 1 Heat Transferred 1638 | 50 700 . 888 Parts Sabotaged . | . . . . Parts Stolen . | . . . . Parts Stripped . | . . . . Power Chain Reactions 11 | 1 10 . . Alert | -11 -10 -10 -10 ------- Run | Yrd Mat Min Sub Peak Influence 287 | 25 287 63 . Initial 63 | . 16 63 . Average 78 | 11 118 10 . Maximum Alert Level 1 | . 1 . . Low Security (%) 89 | 100 82 100 . Level 1 10 | . 17 . . Level 2 . | . . . . Level 3 . | . . . . Level 4 . | . . . . Level 5 . | . . . . High Security . | . . . . Max Security . | . . . . Squads Dispatched 5 | . 5 . . Investigation 4 | . 4 . . Extermination . | . . . . Reinforcement 1 | . 1 . . Assault . | . . . . Garrison . | . . . . Intercept . | . . . . Searches Triggered . | . . . . Construction Impeded . | . . . . Haulers Reinforced . | . . . . Active Scanning Responses . | . . . . Cargo Convoy Interrupts . | . . . . Stealth | -11 -10 -10 -10 --------- Run | Yrd Mat Min Sub Distress Signals 1 | . . 1 . Communications Jammed . | . . . . Distress Signals . | . . . . Times Spotted 58 | . 26 17 15 Peak Tracking Total 6 | . 4 6 6 Tactical Retreats 6 | . 2 1 3 Traps | -11 -10 -10 -10 ------- Run | Yrd Mat Min Sub Traps Triggered 6 | . 6 . . Indirectly . | . . . . Trap Hack Attempts . | . . . . Triggered . | . . . . Disarmed . | . . . . Reprogrammed . | . . . . Reused . | . . . . Traps Extracted . | . . . . Installed 1 | . . . 1 Triggered . | . . . . Machines | -11 -10 -10 -10 ---------- Run | Yrd Mat Min Sub Machines Disabled 11 | . 7 3 1 Max in Single Turn 1 | . 1 . 1 Machines Repaired . | . . . . Machines Dismantled . | . . . . Machines Sabotaged . | . . . . Overloaded Fab Kills . | . . . . Hacking | -11 -10 -10 -10 --------- Run | Yrd Mat Min Sub Machines Accessed 10 | . 9 . 1 Terminals 7 | . 7 . . Fabricators . | . . . . Repair Stations 1 | . 1 . . Recycling Units 1 | . 1 . . Scanalyzers . | . . . . Garrison Access . | . . . . Total Hacks 30 | . 29 . 1 Successful 9 | . 8 . 1 Failed 20 | . 20 . . Catastrophic 3 | . 3 . . Database Lockouts 1 | . 1 . . Manual 18 | . 18 . . Terminals 24 | . 24 . . Fabricators . | . . . . Repair Stations 3 | . 3 . . Recycling Units 2 | . 2 . . Scanalyzers . | . . . . Garrison Access . | . . . . Terminal Hacks 7 | . 6 . 1 Record 1 | . . . 1 Part Schematic 2 | . 2 . . Robot Schematic 1 | . 1 . . Robot Analysis 1 | . 1 . . Prototype ID Bank 2 | . 2 . . Fabricator Hacks . | . . . . Repair Station Hacks . | . . . . Recycling Unit Hacks 1 | . 1 . . Report Inventory 1 | . 1 . . Scanalyzer . | . . . . Garrison Access Hacks . | . . . . Unauthorized Hacks 1 | . 1 . . Terminals . | . . . . Fabricators . | . . . . Repair Stations . | . . . . Recycling Units 1 | . 1 . . Tunnel 1 | . 1 . . Scanalyzers . | . . . . Garrison Access . | . . . . Data Cores Recovered 1 | . 1 . . Used 1 | . 1 . . Hacking Detections 9 | . 9 . . Full Trace Events 8 | . 8 . . Feedback Events . | . . . . Feedback Blocked . | . . . . Robot Schematics Acquired 1 | . 1 . . Robots Built . | . . . . Authchips . | . . . . Time . | . . . . Total Robot Build Rating . | . . . . Part Schematics Acquired 2 | . 2 . . Parts Built . | . . . . Authchips . | . . . . Time . | . . . . Total Part Build Rating . | . . . . Parts Repaired . | . . . . Time . | . . . . Parts Recycled . | . . . . Recycled Matter . | . . . . Retrieved Matter . | . . . . Retrieved Components . | . . . . Parts Scanalyzed . | . . . . Part Schematics Acquired . | . . . . Parts Damaged . | . . . . Bothacking | -11 -10 -10 -10 ------------ Run | Yrd Mat Min Sub Used RIF Installer . | . . . . Robots Hacked . | . . . . Non-combat . | . . . . Combat . | . . . . Robot Hacks Applied . | . . . . Relay Couplers Released . | . . . . Fabnet Peak Effective % . | . . . . Robots Rewired . | . . . . Allies Hacked . | . . . . Hacks Repelled . | . . . . Allies | -11 -10 -10 -10 -------- Run | Yrd Mat Min Sub Total Allies 3 | . . 3 . Largest Group 3 | . . 3 1 Highest-Rated Group 74 | . . 74 12 Highest-Rated Ally 31 | . . 31 12 Total Orders . | . . . . Ally Attacks 22 | . . 22 . Total Damage 315 | . . 315 . Kills 8 | . . 8 . Allies Corrupted . | . . . . Allies Melted . | . . . . Intel | -11 -10 -10 -10 ------- Run | Yrd Mat Min Sub Robot Analysis Total 1 | . 1 . . Derelict Logs Recovered 1 | . . 1 . Drone Launches . | . . . . Drone Recoveries . | . . . . Exploration | -11 -10 -10 -10 ------------- Run | Yrd Mat Min Sub Turns Passed 3286 | 185 1688 831 582 Spaces Moved 1718 | 80 840 451 347 Core 11 | 8 3 . . Treads 231 | 69 162 . . Legs . | . . . . Wheels 1476 | 3 675 451 347 Hover . | . . . . Flight . | . . . . Fastest Speed 50 | 50 95 110 120 Average Speed 140 | 151 156 123 121 Slowest Speed 1550 | 160 1550 125 130 Overloaded Moves . | . . . . Propulsion Burnouts . | . . . . Robots Hopped . | . . . . Cave-ins Triggered . | . . . . Exploration Rate (%) 55 | 4 97 88 34 Regions Visited 3 Branch Regions 2 Pre-discovered Areas 1 | . 1 . . Known Exits Taken 1 | . . 1 . Unknown Exits Taken 2 | 1 1 . . Scrap Searched 2 | . . 1 1 Spaces Dug 20 | . . . 20 Terrain Destroyed 127 | . 28 1 98 Melee . | . . . . Projectile 2 | . . 1 1 AOE 125 | . 28 . 97 Terrain Rammed . | . . . . Walls Destroyed . | . . . . Machines Disabled . | . . . . Actions | -11 -10 -10 -10 --------- Run | Yrd Mat Min Sub Total 2326 | 108 1108 676 434 Wait 344 | . 139 181 24 Move 1715 | 79 839 450 347 Hop . | . . . . Pick Up 42 | 6 23 8 5 Fast Attach 25 | 7 16 1 1 Attach 12 | . 2 6 4 Detach . | . . . . Swap 15 | . 8 1 6 Drop 28 | . 22 3 3 Fire 144 | 16 59 26 43 Melee . | . . . . Ram . | . . . . Kick . | . . . . Crush . | . . . . Escape Stasis . | . . . . Rewire . | . . . . Trap 1 | . . . 1 Miscellaneous . | . . . . Route ------- -11/Scrapyard -10/Materials (discovered 5 exits: [*Mat x3] / [*Min x2]) -10/Mines (discovered 3 exits: [*Mat x2] / *Sub) -10/Subcaves (discovered 1 exit: [*Mat]) History --------- Turn | Location | Event 11 | -11/Scrapyard | Discovered new exit (range 16) 186 | -11/Scrapyard | Entered Materials 301 | -10/Materials | Build established: Mutant 436 | -10/Materials | Discovered new exit (range 6) 800 | -10/Materials | Discovered new exit (range 7) 1051 | -10/Materials | Discovered new exit (range 7) 1441 | -10/Materials | Discovered new exit (range 14) 1471 | -10/Materials | Central database locked down 1690 | -10/Materials | Discovered new exit (range 3) 1874 | -10/Materials | Entered Mines 1919 | -10/Mines | Assembled infested the area 1924 | -10/Mines | Assisted by a Guerilla fighting off Assembled 1964 | -10/Mines | Core integrity fell below 50% 1998 | -10/Mines | Lost 7 parts (1p3n1u2w) 2311 | -10/Mines | Discovered new exit (range 5) 2312 | -10/Mines | Escorted by a lone wolf Derelict 2474 | -10/Mines | Identified exit to Subcaves 2581 | -10/Mines | Discovered new exit (range 9) 2705 | -10/Mines | Entered Subcaves 2705 | -10/Subcaves | Accompanied by 1 ally 2870 | -10/Subcaves | Core integrity fell below 20% 2903 | -10/Subcaves | Shifting Twisted Machinery released Riot Gun 2906 | -10/Subcaves | Shifting Twisted Machinery released Battle Cannon 2925 | -10/Subcaves | A Subdweller sparked back to life 2925 | -10/Subcaves | A Subdweller sparked back to life 2942 | -10/Subcaves | Found Prototype Power Core 2946 | -10/Subcaves | Discovered new exit (range 13) 2952 | -10/Subcaves | A Subdweller sparked back to life 2992 | -10/Subcaves | Visited Clippyterm 3109 | -10/Subcaves | A swath of the cavern ceiling suddenly collapsed 3275 | -10/Subcaves | Disturbed a concealed Subdweller 3287 | -10/Subcaves | Destroyed by P3-I8O(R) with Subdweller Machine Gun Last Messages --------------- 03076_ Lgt. Ion Engine destroyed. 03079_ WU-AKO(R) destroyed. 03088_ Acquired 13 matter. 03099_ Acquired 15 matter. 03109_ 13 Matter crushed. A swath of the cavern ceiling suddenly collapses. 03201_ Beamcaster destroyed. 03204_ Destroyed Scrap Shield. 03206_ H4-DEJ(R) destroyed. 03210_ 8T-Z7X(R) destroyed. 03224_ Acquired 3 matter. 03268_ Searching scrap... 03268_ Found Sub. Power Source. 03268_ Found Sub. Machine Gun. 03268_ Found 36 Matter. 03269_ Acquired 36 matter. 03270_ Acquired Sub. Power Source. 03275_ P3-I8O(R) angrily emerges from the Twisted Machinery. Map ----- +----------------------------------------------------+ | ????????????????????????????????????? | | ????????????????????????????????????? | | ????????????????????????????????????? | | ????????????????????????????????????? | | ????????????????????????????????????? | | ????????????????????????????????????? | | ????????????????????????????????????? | | ????????????????????????????????????? | | ????????????????????????????????????? | | ????????????????????????????????????? | | ????????????????????????????????????? | | ????????????????????????????????????? | | ????????????????????????????????????? | | ????????????????????????????????????? | | ????????????????????????????????????? | | ????????????????????######????????### | | ??????????????????### ## ###????## | | ??????????????????# "" ##???# | | ??????????????????# #??#"" "###?# | | ?????????????????## ###### #### | | ????????????????## #"" " ## | | ???????????????## " | | ???????????????# #### # | | ???????????##### ##??### | | ???????????# R #?????? | | ???????????#@# [ #??#??? | | ???????????# #" "## #" ##?? | | ???????????# #""$"# "" #?? | | ???????????# ##$"&# & "" #? | | ???????????# #$""# "" ###? | | ???????????## ##### =#??? | | ????????????# = #??? | | ????????????### ##??? | | ??????????????# ##### #####???? | | ??????????????## ##???#####???????? | | ???????????????# ?????????????????? | | ???????????????# #?????????????????? | | ???????????????# #??????????????????? | | ???????????????##???????????????????? | | ????????????????????????????????????? | | ????????????????????????????????????? | | ????????????????????????????????????? | | ????????????????????????????????????? | | ????????????????????????????????????? | | ????????????????????????????????????? | | ????????????????????????????????????? | | ????????????????????????????????????? | | ????????????????????????????????????? | | ????????????????????????????????????? | | ????????????????????????????????????? | +----------------------------------------------------+ Best States ------------- Heat Dissipation 25 Energy Generation 10 Energy Capacity 200 Matter Stores 300 Matter Capacity 300 Sight Range 16 Terrain Scan Density 10 Armor Coverage 150 Evasion (%) 41 Recoil Reduction 1 Item Schematics ----------------- Lrg. Storage Unit | -10/Materials | Hacked Cargo Storage Unit | -10/Materials | Hacked Robot Schematics ------------------ M-13 Machinist | -10/Materials | Hacked Fabricated ------------ Nothing Alien Tech Used ----------------- None Achievements -------------- None Challenges ------------ None Game ------ Seed CarbideCouplerNanosword Manual? 0 Play Time 00:30:14 Cumulative 8.1 hours Start 2024.04.20 @ 23:36:16 End 2024.04.21 @ 00:05:40 Sessions 1 Manual Loads 0 Difficulty Rogue Special Mode None Game No. 6 Rogue 6 Adventurer 0 Explorer 0 Win Type - Total 0 Types 0/0/0/0/0/0/0/0/0 Lore% 13 Gallery% 22 Achievement% 21 Wizard Run 0 Options --------- Layout 1 ASCII 0 Keyboard 0 Movement Mouse Keybinds 0 Fullscreen 1 Font 24/Terminus Map View 50x35 Zoom Use 0% Tactical HUD 1 Map Filters NONE Filters NONE Steam 0 RUN: ea47a6a6-d7da-46f3-a4a8-d4fe046b878c